[Event "European Women-ch 2023"]
[Site "Petrovac"]
[Date "2023.03.25"]
[Round "7.12"]
[White "Mayrhuber, Nikola"]
[Black "Skvortsova, Alena"]
[Result "1-0"]
[Annotator "TA"]
[ECO "D30"]
[WhiteElo "2162"]
[BlackElo "2032"]
[PlyCount "65"]
[EventDate "2023.03.15"]
[EventType "swiss"]
[EventCountry "MNE"]
[SourceTitle "playchess.com"]
[Source "ChessBase"]
[SourceQuality "1"]
[TimeControl "40/5400+30:1800+30"]

{[%evp 9,65,22,54,30,31,35,40,18,28,14,26,33,30,25,28,18,30,30,22,14,32,14,41,-7,0,-4,0,-11,-14,-43,-4,-26,-9,-17,-20,-20,-19,-28,0,0,0,0,0,0,0,0,0,0,36,0,168,167,29996,29997,29997,29998,29998,29999]} 1. d4 {[%emt 0:00:05]} d5 {[%emt 0:00:04]} 2. c4 {[%emt 0:00:04]} c6 {[%emt 0:00:04]} 3. Nf3 {[%emt 0:00:04]} Nf6 {[%emt 0:00:07]} 4. e3 {[%emt 0:00:06]} e6 {[%emt 0:01:05]} 5. Bd3 {[%emt 0:00:09]} Ne4 {[%emt 0:05:10]} 6. O-O {[%emt 0:03:25] D30: Queen's Gambit Declined: Systems without Nc3.} (6. Nbd2 $5 {[%cal Rd2e4]}) 6... Bd6 {[%emt 0:01:22]} 7. b3 {[%emt 0:03:03]} Qe7 {[%emt 0:06:50]} 8. Qc2 {[%emt 0:02:43] White is slightly better.} f5 {[%emt 0:02:42]} 9. Ne5 {[%emt 0:02:05]} Nd7 {[%emt 0:03:18]} 10. Bb2 {[%emt 0:00:16]} O-O {[%emt 0:09:10]} 11. f3 {[%emt 0:01:01]} Ng5 {[%emt 0:05:35]} 12. Nd2 {[%emt 0:02:26]} Nxe5 {[%emt 0:08:58]} 13. dxe5 {[%emt 0:00:08]} Bc5 {[%emt 0:00:13]} 14. Rae1 {[%emt 0:05:55] [#]} h6 $146 {[%emt 0:08:56]} ({Predecessor:} 14... f4 15. Bd4 fxe3 16. Bxe3 Bxe3+ 17. Rxe3 g6 18. c5 b6 19. f4 Nf7 20. Bxg6 Qxc5 21. Bxh7+ {1-0 Gentili,G (2074)-Ranfagni,S (1970) Bratto op 35th 2015 (6)}) 15. Kh1 {[%emt 0:02:25]} a5 {[%emt 0:03:16]} 16. f4 {[%emt 0:07:39]} (16. Nb1 $14) 16... Ne4 $11 {[%emt 0:00:38]} 17. Nf3 {[%emt 0:00:07][%cal Bd2f3,Bf3d4,Bd4b5,Bb5d6][%mdl 32]} Bd7 {[%emt 0:09:02][%cal Oa5a4]} 18. cxd5 {[%emt 0:04:19]} cxd5 {[%emt 0:03:36]} 19. Bd4 {[%emt 0:02:13]} Ba3 {[%emt 0:00:00]} 20. Qe2 {[%emt 0:02:13]} Rfc8 {[%emt 0:00:00]} 21. Ba1 {[%emt 0:05:15]} Rc7 {[%emt 0:01:58]} 22. Nd4 {[%emt 0:05:10]} Rac8 {[%emt 0:01:13]} 23. g4 {[%emt 0:05:57]} Bc5 {[%emt 0:17:05]} (23... Bb4 $5 {[%cal Rb4e1]} 24. Rb1 Nd2 $11) 24. gxf5 {[%emt 0:11:31]} exf5 {[%emt 0:00:23]} 25. Bxe4 {[%emt 0:03:37]} dxe4 {[%emt 0:00:36]} 26. e6 {[%emt 0:06:45][%mdl 64] [#] Deflection} Bxe6 {[%emt 0:00:05]} 27. Nb5 {[%emt 0:00:19]} Rd7 {[%emt 0:01:46]} 28. Rg1 $1 {[%emt 0:00:22][%cal Bf1g1,Bg1g7,Bg7g8][%mdl 32]} Qe8 {[%emt 0:05:03]} (28... Qh4 $5) 29. Qb2 {[%emt 0:02:21][%cal Rg1g7]} (29. Rg3 $5 {[%cal Re1g1]}) 29... Bf8 {[%emt 0:04:02]} (29... Qf7 $1 $11 {and Black has nothing to worry.}) 30. Nd6 $1 $18 {[%emt 0:00:06][%mdl 64] Deflection} Bxd6 {[%emt 0:01:26]} (30... Qh5 $18 31. Nxc8 Qf3+ 32. Qg2 Rd2 {[%mdl 64] Pin} 33. Qxf3 exf3) 31. Rxg7+ {[%emt 0:00:16] White mates.} Kf8 {[%emt 0:00:07]} 32. Qf6+ {[%emt 0:03:16]} Rf7 {[%emt 0:00:12] [#]} 33. Rg8+ $3 {[%emt 0:00:27][%mdl 576] Skewer, Decoy, Back Rank. Ingenious play by Mayrhuber!   Weighted Error Value: White=0.09 (flawless) /Black=0.33} 1-0

[Event "European Women-ch 2023"]
[Site "Petrovac"]
[Date "2023.03.25"]
[Round "7.13"]
[White "Zimina, Olga"]
[Black "Donghvani, Nia"]
[Result "1/2-1/2"]
[Annotator "TA"]
[ECO "D03"]
[WhiteElo "2295"]
[BlackElo "2025"]
[PlyCount "90"]
[EventDate "2023.03.15"]
[EventType "swiss"]
[EventCountry "MNE"]
[SourceTitle "playchess.com"]
[Source "ChessBase"]
[SourceQuality "1"]
[TimeControl "40/5400+30:1800+30"]

{[%evp 15,90,0,6,0,0,-15,-4,-4,0,0,93,89,96,92,82,89,87,87,82,83,99,77,108,62,52,66,70,77,77,67,70,72,132,133,131,128,184,183,168,178,213,217,203,25,208,206,200,-36,-39,-69,-70,-166,-187,-220,-216,-220,-227,-218,-148,-179,-174,-180,-93,-822,-802,-940,-902,-909,-60,-61,-60,-58,-5,-6,-5,0,0]} 1. d4 {[%emt 0:00:17]} Nf6 {[%emt 0:00:34]} 2. Nf3 {[%emt 0:00:07]} g6 {[%emt 0:00:38]} 3. Bg5 {[%emt 0:01:54]} Bg7 {[%emt 0:02:50]} 4. Nbd2 {[%emt 0:00:55]} d5 {[%emt 0:02:47]} 5. e3 {[%emt 0:00:35]} O-O {[%emt 0:03:28]} 6. Bd3 {[%emt 0:01:02]} c5 {[%emt 0:00:04]} 7. c3 {[%emt 0:01:12]} Nbd7 {[%emt 0:03:14]} 8. O-O {[%emt 0:01:44]} b6 {[%emt 0:02:32]} 9. Bh4 {[%emt 0:05:48] 9.a4 gains popularity. D03: 1 d4 d5 2 Nf3 Nf6 3 Bg5, including Torre Attack with early ...d5.} Bb7 {[%emt 0:00:33]} 10. Ne5 {[%emt 0:02:05]} Ne4 {[%emt 0:14:36]} 11. f4 {[%emt 0:01:18]} Nxe5 {[%emt 0:07:22]} 12. fxe5 {[%emt 0:00:30] [#]} f6 $146 {[%emt 0:00:02]} (12... Nxd2 $11 {keeps the balance.} 13. Qxd2 f6) ({Predecessor:} 12... Bh6 13. Qe2 Nxd2 14. Qxd2 cxd4 15. cxd4 Rc8 16. Bg3 e6 17. Bf4 Bg7 18. Qf2 Qe7 19. Qg3 Qb4 20. Rf2 Rc7 21. Raf1 Rfc8 22. Bg5 Qf8 23. h4 {½-½ Wiedmann,M (1889)-Haselbeck,F (1907) Niederbayernliga 0304 2003 (7)}) 13. Nxe4 $16 {[%emt 0:31:19]} dxe4 {[%emt 0:00:21]} 14. Bc4+ {[%emt 0:00:15]} Kh8 {[%emt 0:01:08]} 15. dxc5 {[%emt 0:17:40] White is more active.} bxc5 {[%emt 0:13:22]} 16. Qxd8 {[%emt 0:03:42]} Raxd8 {[%emt 0:00:03]} 17. Rad1 $1 {[%emt 0:00:19] Dodges Bd5} g5 {[%emt 0:01:10]} 18. Bg3 {[%emt 0:05:40]} Bc6 {[%emt 0:13:27]} 19. exf6 {[%emt 0:02:22]} (19. Rxd8 $16 Rxd8 20. h4) 19... Bxf6 $14 {[%emt 0:00:05]} 20. h3 {[%emt 0:07:45]} Kg7 {[%emt 0:01:40]} 21. Rxd8 {[%emt 0:01:44]} Rxd8 {[%emt 0:00:05]} 22. Rf5 {[%emt 0:00:05]} Rd1+ {[%emt 0:02:17]} 23. Kh2 {[%emt 0:00:09]} Rd2 {[%emt 0:03:13]} (23... Ba4 $142) 24. Rxc5 $16 {[%emt 0:00:59]} Be8 {[%emt 0:01:10]} 25. b4 {[%emt 0:11:49]} Bh5 {[%emt 0:16:15]} (25... Rc2 $16 {was worth a try.}) 26. a4 $1 $18 {[%emt 0:00:04]} Bf3 {[%emt 0:00:06]} 27. Bf1 {[%emt 0:00:04]} Be2 {[%emt 0:03:14] Wards off b5} 28. Bxe2 {[%emt 0:01:33]} Rxe2 {[%emt 0:00:03][%mdl 4096] Endgame [#] KRB-KRB} 29. h4 $2 {[%emt 0:00:49]} h6 $2 {[%emt 0:03:39]} (29... gxh4 $11 30. Bf4 e5 31. Bxe5 Bxe5+ 32. Rxe5 Rxe3) 30. hxg5 {[%emt 0:00:08]} hxg5 {[%emt 0:00:01]} 31. c4 $2 {[%emt 0:00:32]} (31. Bb8 $18) 31... Rxe3 $15 {[%emt 0:00:05] Threatens to win with ...Rb3.} 32. a5 {[%emt 0:00:10]} Rb3 {[%emt 0:01:10] ...e3 would be deadly.} 33. b5 {[%emt 0:00:05]} (33. Be5 $1 $15) 33... e3 $1 $19 {[%emt 0:00:45][%cal Be4e3,Be3e2][%mdl 32]} 34. Rf5 {[%emt 0:02:00][%cal Ob5b6] [#]} ({Don't blunder} 34. Rc7 $2 e2 35. Rc6 (35. Rxa7 {is a self mate.} Rxg3 {[%mdl 64] Remove Defender, Promotion} 36. Kxg3 e1=Q+ 37. Kf3 Bd4) 35... Be5 36. Bxe5+ Kf7 $19) 34... Kg6 $1 {[%emt 0:03:49]} 35. Rf1 {[%emt 0:00:05]} Bc3 {[%emt 0:01:17]} 36. a6 {[%emt 0:00:54]} e2 {[%emt 0:00:36]} 37. Rc1 {[%emt 0:00:27]} Bd2 {[%emt 0:00:34]} 38. Ra1 {[%emt 0:00:37] [#]} Be3 {[%emt 0:00:41]} (38... Kf5 $1 $19 39. Be1 Bf4+ 40. g3 Be3) 39. Re1 $2 {[%emt 0:00:37][%mdl 8192]} (39. Be1 $17) 39... Rb2 {[%emt 0:00:12]} 40. Be5 {[%emt 0:00:00]} Rc2 {[%emt 0:00:00][%cal Oe3f2] Hoping for ...Bf2!} 41. Kg3 {[%emt 0:00:27]} Kf5 $2 {[%emt 0:04:02]} (41... Bb6 $19 {...Kf5 is the strong threat.} 42. Ra1 Kf5 {[%mdl 64] Decoy}) 42. Bc7 $1 $15 {[%emt 0:07:44]} Bc5 {[%emt 0:13:17]} 43. b6 $1 {[%emt 0:03:47]} Bxb6 {[%emt 0:03:11]} (43... axb6 $15 44. a7 Rc3+ 45. Kh2 Ra3) 44. Bxb6 $11 {[%emt 0:00:22]} axb6 {[%emt 0:00:02]} 45. Kf2 $1 {[%emt 0:05:17]} Ra2 {[%emt 0:02:00] Weighted Error Value: White=0.36/Black=0.48} 1/2-1/2

[Event "European Women-ch 2023"]
[Site "Petrovac"]
[Date "2023.03.25"]
[Round "7.13"]
[White "Sliwicka, Alicja"]
[Black "Sargsyan, Anna M."]
[Result "0-1"]
[Annotator "TA"]
[ECO "B30"]
[WhiteElo "2272"]
[BlackElo "2371"]
[PlyCount "98"]
[EventDate "2023.03.15"]
[EventType "swiss"]
[EventCountry "MNE"]
[SourceTitle "playchess.com"]
[Source "ChessBase"]
[SourceQuality "1"]
[TimeControl "40/5400+30:1800+30"]

{[%evp 14,98,32,35,75,71,79,82,81,85,85,85,83,75,83,76,79,64,93,82,106,70,94,54,81,61,95,94,93,106,73,93,83,66,65,81,88,51,74,43,54,55,132,99,85,38,175,189,177,120,170,168,149,-44,-44,-44,-44,-49,-33,-46,-52,-52,-52,-491,-477,-1008,-1002,-939,-887,-1334,-1284,-4124,-1017,-1994,-1970,-29937,-29937,-29975,-29976,-29976,-29977,-29990,-29991,-29991,-29992,-29995,-29996]} 1. e4 {[%emt 0:00:04]} c5 {[%emt 0:00:05]} 2. Nf3 {[%emt 0:00:06]} Nc6 {[%emt 0:00:06]} 3. Nc3 {[%emt 0:00:06]} Nf6 {[%emt 0:02:41]} 4. Bb5 {[%emt 0:00:12]} Nd4 {[%emt 0:03:44]} 5. e5 {[%emt 0:00:23]} Nxb5 {[%emt 0:02:33]} 6. Nxb5 {[%emt 0:00:14]} Nd5 {[%emt 0:00:11][%cal Bf6d5,Bd5b6,Bb6c4][%mdl 32]} 7. O-O {[%emt 0:02:12]} a6 {[%emt 0:03:10]} 8. c4 {[%emt 0:00:12]} Nb6 {[%emt 0:01:57] has lost popularity (8...Nb4). B30: Sicilian: 2...Nc6 3 Bb5, lines without ...g6.} 9. Nc3 {[%emt 0:03:59][%cal Bb5c3,Bc3a4,Ba4b6][%mdl 32]} d5 {[%emt 0:00:31]} 10. d4 {[%emt 0:10:13]} Nxc4 {[%emt 0:06:18] White is better.} 11. dxc5 {[%emt 0:04:25]} e6 {[%emt 0:00:10]} 12. b3 {[%emt 0:04:32]} Na5 {[%emt 0:00:22] [#]} 13. Na4 $146 {[%emt 0:02:38] Black is weak on the dark squares} ({Predecessor:} 13. Bg5 Qc7 14. Na4 Rb8 15. Rc1 Bd7 16. Nb6 h6 17. Bf4 Be7 18. Qd2 g5 19. Bg3 {1-0 Kulikov,E (2260)-Gogin,R (2135) St Petersburg FINEC IM 2007 (2)}) 13... Be7 {[%emt 0:03:15]} 14. Nb6 {[%emt 0:16:01]} Rb8 {[%emt 0:00:06]} 15. b4 {[%emt 0:00:24]} Nc6 {[%emt 0:01:02]} 16. Rb1 {[%emt 0:01:10]} O-O {[%emt 0:00:19]} 17. Bf4 {[%emt 0:02:01]} Bd7 {[%emt 0:01:45]} 18. Qd2 {[%emt 0:05:06]} Na7 {[%emt 0:01:22]} 19. Nd4 {[%emt 0:03:32]} Nc8 {[%emt 0:02:44] [#]} 20. Nxd5 {[%emt 0:06:48]} exd5 {[%emt 0:00:07] [#]} 21. e6 $1 {[%emt 0:00:05][%cal Oe6d7][%mdl 64] Threatens to win with exd7! Discovered Attack} Ra8 {[%emt 0:00:15]} 22. exd7 {[%emt 0:00:13]} Qxd7 {[%emt 0:00:04]} 23. Rfd1 {[%emt 0:01:34]} Na7 {[%emt 0:02:16]} 24. Rb3 $36 {[%emt 0:00:54][%mdl 2048] Black is under strong pressure.} Nc6 {[%emt 0:07:11]} 25. Rd3 {[%emt 0:02:59]} a5 {[%emt 0:02:37]} 26. a3 {[%emt 0:00:33]} axb4 {[%emt 0:01:53]} 27. axb4 {[%emt 0:00:06]} Rfd8 {[%emt 0:02:39]} (27... Bf6 $14) 28. Ne2 {[%emt 0:04:40]} Bf6 {[%emt 0:07:48]} 29. Ng3 {[%emt 0:03:01]} (29. Rxd5 Qxd5 30. Qxd5 Rxd5 31. Rxd5 Ra1+ 32. Nc1 g5 $15) (29. h3 $16) 29... Ra4 {[%emt 0:05:34]} (29... Ra1 $14) 30. Nh5 $1 $18 {[%emt 0:01:18]} Ba1 {[%emt 0:10:02]} 31. Rg3 {[%emt 0:04:08]} (31. Rxd5 Qxd5 32. Qxd5 Rxd5 33. Rxd5 Rxb4 $15) (31. b5 Ne5 $16) (31. h3 $1 $18) 31... g6 {[%emt 0:01:32] [#]} (31... Kh8 $16) 32. Bg5 $1 {[%emt 0:01:10]} Rda8 {[%emt 0:00:10]} 33. Bf6 $2 {[%emt 0:06:24]} (33. h4 $16) 33... Qf5 $15 {[%emt 0:00:38]} 34. Rg5 {[%emt 0:02:18]} Qe6 {[%emt 0:00:06] Some like it hot. Active counter play!} 35. Rxd5 $1 {[%emt 0:08:38] Hoping for Rd6.} Bxf6 {[%emt 0:03:00]} 36. Rd6 {[%emt 0:00:02]} gxh5 {[%emt 0:03:31]} 37. Rxe6 {[%emt 0:00:03]} fxe6 {[%emt 0:00:04]} 38. g3 $2 {[%emt 0:01:29][%mdl 8192] [#]} ({White should try} 38. Qh6 $15 Rf8 39. b5) 38... Rd8 $1 $19 {[%emt 0:00:16]} (38... Rxb4 39. Qh6 Bd4 40. Qxe6+ Kh8 41. Qf7 $11) (38... Nxb4 39. Qe3 Ra1 40. Qxe6+ Kg7 41. Qd7+ Kg6 42. Rxa1 Rxa1+ 43. Kg2 $14) 39. Qe2 {[%emt 0:01:29]} (39. Qh6 $142 Rxd1+ 40. Kg2) 39... Rxd1+ {[%emt 0:00:05]} ({Weaker is} 39... Nxb4 40. Qxe6+ (40. Qxh5 $2 {perishes.} Rxd1+ 41. Kg2 Rd8 $19) 40... Kg7 41. Rd7+ Rxd7 42. Qxd7+ Kh6 43. Qxa4 $18) 40. Kg2 {[%emt 0:00:00]} Raa1 {[%emt 0:00:00]} 41. Qxe6+ {[%emt 0:01:02]} Kg7 {[%emt 0:01:53]} 42. Qc8 {[%emt 0:04:45]} Nd8 {[%emt 0:03:50]} ({Inferior is} 42... Nxb4 43. Qxb7+ Kg6 44. Qe4+ Kg7 45. Qb7+ Kg6 46. Qe4+ Kg7 47. Qb7+ $15) 43. b5 {[%emt 0:02:02]} Rd2 {[%emt 0:04:52] And now ...Raa2 would win.} 44. c6 {[%emt 0:09:16]} bxc6 {[%emt 0:00:09] Black mates.} 45. bxc6 {[%emt 0:00:15]} Raa2 {[%emt 0:00:05]} 46. Qc7+ {[%emt 0:00:09]} Kg6 {[%emt 0:00:29]} 47. Kf3 {[%emt 0:02:04]} Rxf2+ {[%emt 0:01:07]} 48. Ke3 {[%emt 0:00:04]} Rfe2+ {[%emt 0:00:29]} 49. Kf3 {[%emt 0:01:25]} Ne6 {[%emt 0:00:06] Black used his chance.   Weighted Error Value: White=1.16/Black=0.25 (precise)} 0-1

[Event "European Women-ch 2023"]
[Site "Petrovac"]
[Date "2023.03.25"]
[Round "7.13"]
[White "Kejzar, Petra"]
[Black "Ismayil, Malak"]
[Result "0-1"]
[Annotator "TA"]
[ECO "D02"]
[WhiteElo "2128"]
[BlackElo "2011"]
[PlyCount "84"]
[EventDate "2023.03.15"]
[EventType "swiss"]
[EventCountry "MNE"]
[SourceTitle "playchess.com"]
[Source "ChessBase"]
[SourceQuality "1"]
[TimeControl "40/5400+30:1800+30"]

{[%evp 9,84,0,0,0,0,0,0,0,0,0,-3,0,0,-16,-13,-8,0,0,4,-66,-55,-167,-49,-64,-38,-56,-31,-178,-190,-214,-186,-289,-271,-338,-294,-415,-418,-497,-437,-418,-317,-363,-337,-331,-315,-345,-333,-323,-122,-255,-237,-291,-306,-588,-608,-698,-701,-666,-667,-645,-630,-1109,-1100,-1269,-1247,-1230,-1206,-1740,-1649,-1626,-1458,-1223,-1157,-1020,-925,-722,-584]} 1. d4 {[%emt 0:00:02]} d5 {[%emt 0:00:39]} 2. Bf4 {[%emt 0:00:13]} c5 {[%emt 0:00:35]} 3. c3 {[%emt 0:01:06]} Nc6 {[%emt 0:00:49]} 4. Nf3 {[%emt 0:00:54]} Qb6 {[%emt 0:04:00]} 5. Qb3 {[%emt 0:07:45]} c4 {[%emt 0:11:42]} 6. Qxb6 {[%emt 0:00:52] D02: 1 d4 d5 2 Nf3 sidelines, including 2...Nf6 3 g3 and 2...Nf6 3 Bf4.} axb6 {[%emt 0:00:01]} 7. Na3 {[%emt 0:16:21][%cal Oe2e4]} Bf5 {[%emt 0:25:32] [#]} 8. Nh4 $146 {[%emt 0:06:07] The position is equal.} ({Predecessor:} 8. Nb5 Kd7 9. Nc7 Ra5 10. Ng5 Bg6 11. e4 e6 12. exd5 exd5 13. g3 Bd6 14. Bxd6 Kxd6 {0-1 Zivkovic-Zelcic,R (2460) West End op Italy 1994 (2)}) 8... Bd7 {[%emt 0:09:09][%cal Oe7e5]} 9. e4 {[%emt 0:03:33]} e6 {[%emt 0:03:29]} 10. exd5 {[%emt 0:02:05]} exd5 {[%emt 0:00:22]} 11. Nb5 {[%emt 0:02:51] Nc7+ would be deadly.} Ra5 {[%emt 0:00:12]} 12. Nd6+ {[%emt 0:00:53]} Bxd6 {[%emt 0:00:31]} 13. Bxd6 {[%emt 0:00:06]} Nf6 {[%emt 0:00:17]} 14. Be2 {[%emt 0:05:15]} (14. Nf3 $11) 14... Ne4 $15 {[%emt 0:00:41]} 15. Bg3 {[%emt 0:00:15]} ({White should play} 15. Bb4 $1 $15 Nxb4 16. cxb4) 15... b5 {[%emt 0:07:30]} ({Black should try} 15... O-O $1 $19 {...Rb5 is the strong threat.} 16. Nf3 Rb5) 16. O-O {[%emt 0:04:31]} b4 {[%emt 0:03:11] Black is more active.} 17. Bc7 $1 {[%emt 0:02:30]} bxc3 {[%emt 0:03:53]} 18. bxc3 {[%emt 0:01:51] [#] White is now going downhill.} (18. Bxa5 $15 Nxa5 19. b3) 18... Ra4 $1 $19 {[%emt 0:05:57]} (18... Nxc3 19. Rfe1 O-O 20. Bxa5 Nxa5 21. Rac1 $15) 19. Rac1 {[%emt 0:10:31] [#]} O-O $1 {[%emt 0:00:34]} (19... Rxa2 20. Rfe1 $15) 20. Rc2 {[%emt 0:00:42]} (20. f3 $142 Nxc3 21. Rxc3) 20... Rc8 {[%emt 0:01:04]} 21. Bg3 {[%emt 0:03:05]} Rca8 {[%emt 0:02:11]} 22. Ra1 {[%emt 0:07:48]} (22. Bf3 $142) 22... Ra3 {[%emt 0:00:14]} 23. Bf1 {[%emt 0:01:45]} Rxc3 {[%emt 0:04:04]} 24. Rb2 {[%emt 0:00:13] White is weak on the light squares} Ra7 {[%emt 0:02:22][%cal Oc3b3]} (24... Nxd4 25. Be5 Nb3 26. Rab1 $17) 25. Nf3 {[%emt 0:00:23]} Rca3 {[%emt 0:01:09]} 26. Bf4 {[%emt 0:02:41]} c3 {[%emt 0:01:20][%cal Bc4c3,Bc3b2][%mdl 32]} 27. Rb5 {[%emt 0:01:03]} Be6 {[%emt 0:07:30]} (27... Rxa2 $2 28. Rxa2 Rxa2 29. Rxb7) 28. Be3 {[%emt 0:01:23]} Nd8 $2 {[%emt 0:03:02] Excellent horsemanship.} (28... Rxa2 $19 {and Black stays clearly on top.} 29. Rxa2 Rxa2 30. Rxb7 Ra1) 29. h3 {[%emt 0:01:09]} (29. Rc1 $17) 29... Rxa2 {[%emt 0:01:09]} 30. Re1 {[%emt 0:01:57]} Rb2 {[%emt 0:01:37]} 31. Rxb2 $2 {[%emt 0:02:49]} (31. g4 {might work better.}) 31... cxb2 {[%emt 0:00:01] Black is clearly winning.} 32. Nd2 {[%emt 0:00:23]} Nc3 {[%emt 0:01:02] Wards off Rb1. aiming for ...Ra1.} 33. Bd3 {[%emt 0:00:24]} Nc6 {[%emt 0:01:20]} 34. Nb1 {[%emt 0:01:08]} Ra1 {[%emt 0:00:00] Threatens to win with ...Nb4.} 35. Kf1 {[%emt 0:00:07]} Nb4 {[%emt 0:00:07]} 36. Nxc3 {[%emt 0:00:55]} Nxd3 {[%emt 0:00:14][%csl Gd3][%cal Ra1e1][%mdl 64] Pin} 37. Rb1 {[%emt 0:00:06]} Bf5 {[%emt 0:00:49]} 38. g4 {[%emt 0:01:01]} Rxb1+ {[%emt 0:00:30]} 39. Nxb1 {[%emt 0:00:03]} Be4 {[%emt 0:00:04]} 40. f3 {[%emt 0:00:00]} Bg6 {[%emt 0:00:00]} 41. Bd2 {[%emt 0:04:13] [#]} Nb4 $1 {[%emt 0:01:53][%mdl 576] Promotion} 42. Na3 {[%emt 0:01:11]} Nc6 {[%emt 0:01:39] Weighted Error Value: White=0.82/Black=0.25 (precise)} ({Inferior is} 42... b1=B 43. Nxb1 Nc2 44. Kf2 $17) ({And not} 42... b1=N 43. Bxb4 Nxa3 44. Bxa3 $15) ({Stronger than} 42... b1=Q+ 43. Nxb1 Bd3+ 44. Kf2 $17) 0-1